bitfinex-derivatives/quotes_BTCF0:USTF0_20250508
["timestamp","ask_amount","ask_price","bid_price","bid_amount"]
[1746681644346,1.3551264,98943.0,98942.0,0.22143084]
[1746681645348,1.3551264,98943.0,98942.0,0.22139084]
[1746681650653,1.3531264,98943.0,98942.0,0.22039084]
[1746681650843,1.3511264,98943.0,98942.0,0.22039084]
[1746681651550,1.3511264,98943.0,98942.0,0.22139084]
[1746681652050,0.9903264,98943.0,98942.0,0.22139084]
[1746681652353,0.9893264,98943.0,98942.0,0.22139084]
[1746681652950,0.9903264,98943.0,98942.0,0.22139084]
[1746681653747,0.2021469,98933.0,98925.0,0.07944]
[1746681653947,0.2021612,98926.0,98925.0,0.07944]
[1746681654147,0.7509612,98926.0,98925.0,0.07944]
[1746681654352,0.2021877,98913.0,98912.0,0.00151649]
[1746681654552,0.5629877,98913.0,98912.0,0.4040025]
[1746681654750,0.5629877,98913.0,98912.0,0.3245625]
[1746681654939,0.5629877,98913.0,98912.0,0.4040025]
[1746681655146,0.8569877,98913.0,98912.0,0.4040025]
[1746681655656,0.8569877,98913.0,98912.0,0.4060025]
[1746681656158,0.8569877,98913.0,98912.0,0.4080025]
[1746681656956,0.8569877,98913.0,98912.0,0.3285625]
[1746681657159,0.8569877,98913.0,98912.0,0.41551129]
[1746681658957,1.3569877,98913.0,98912.0,0.41551129]
[1746681661559,1.3589877,98913.0,98912.0,0.41151129]
[1746681662260,1.3599877,98913.0,98912.0,0.41151129]
[1746681670368,1.4610877,98913.0,98912.0,0.01750879]
[1746681670561,0.2021939,98910.0,98909.0,0.97992]
[1746681670760,0.2021939,98910.0,98909.0,1.06924]
[1746681670959,0.7221939,98910.0,98909.0,1.06924]
[1746681671155,0.8901939,98910.0,98909.0,0.98992]
[1746681671359,1.3901939,98910.0,98909.0,0.98989]
[1746681671554,1.3921939,98910.0,98909.0,0.98989]
[1746681672365,1.3921939,98910.0,98909.0,0.99735633]
[1746681674468,1.3921939,98910.0,98909.0,1.03885781]
[1746681674668,1.7529939,98910.0,98909.0,1.03885781]
[1746681677272,0.050552,98903.0,98861.0,0.2050762]
[1746681677472,0.05056,98888.0,98879.0,0.08]
[1746681677767,0.05056,98888.0,98873.0,0.00762102]
[1746681677768,0.2022593,98878.0,98873.0,0.00762102]
[1746681677965,1.1030593,98878.0,98873.0,0.00762102]
[1746681678164,1.2710593,98878.0,98873.0,0.00762102]
[1746681678366,0.20229,98863.0,98862.0,0.36877721]
[1746681678577,0.20229,98863.0,98862.0,0.7405159]
[1746681678979,0.72229,98863.0,98862.0,0.5382274]
[1746681679178,0.95539,98863.0,98862.0,0.5382274]
[1746681679782,0.95539,98863.0,98862.0,0.6175474]
[1746681680178,0.95739,98863.0,98862.0,0.6335474]
[1746681681385,0.95739,98863.0,98862.0,0.64128816]
[1746681681879,0.95739,98863.0,98862.0,0.56196816]
[1746681682085,0.95739,98863.0,98862.0,0.64128816]
[1746681683683,0.95639,98863.0,98862.0,0.62928816]
[1746681684481,0.95639,98863.0,98862.0,0.62728816]
[1746681684482,0.95739,98863.0,98862.0,0.62728816]
[1746681685083,0.95639,98863.0,98862.0,0.62628816]
[1746681686187,0.95539,98863.0,98862.0,0.62628816]
[1746681686380,0.95639,98863.0,98862.0,0.62628816]
[1746681686790,0.95639,98863.0,98862.0,0.62528816]
[1746681686991,0.95639,98863.0,98862.0,0.62628816]
[1746681689285,0.95639,98863.0,98862.0,0.54534816]
[1746681689988,0.95639,98863.0,98862.0,0.54434816]
[1746681690688,0.95539,98863.0,98862.0,0.54434816]
[1746681690883,0.95639,98863.0,98862.0,0.54434816]
[1746681692691,0.95639,98863.0,98862.0,0.54534816]
[1746681693194,0.95539,98863.0,98862.0,0.54534816]
[1746681693387,0.95639,98863.0,98862.0,0.54534816]
[1746681693587,0.95639,98863.0,98862.0,0.46602816]
[1746681693787,0.95639,98863.0,98862.0,0.54534816]
[1746681694191,0.95539,98863.0,98862.0,0.54534816]
[1746681694386,0.95639,98863.0,98862.0,0.54534816]
[1746681696595,0.95539,98863.0,98862.0,0.54534816]
[1746681696794,0.95639,98863.0,98862.0,0.54534816]
[1746681697397,0.95539,98863.0,98862.0,0.54534816]
[1746681697598,0.95639,98863.0,98862.0,0.54534816]
[1746681698300,0.95639,98863.0,98862.0,0.54434816]
[1746681699300,0.95639,98863.0,98862.0,0.60694816]
[1746681700198,0.95639,98863.0,98862.0,0.52139945]
[1746681701291,0.95639,98863.0,98862.0,0.52239945]
[1746681701491,0.95539,98863.0,98862.0,0.52239945]
[1746681701691,0.95639,98863.0,98862.0,0.52239945]
[1746681701894,0.95639,98863.0,98862.0,0.52139945]
[1746681702198,0.95639,98863.0,98862.0,0.52239945]
[1746681702500,0.95639,98863.0,98862.0,0.52139945]
[1746681702695,0.95639,98863.0,98862.0,0.52239945]
[1746681703601,0.95539,98863.0,98862.0,0.52239945]
[1746681703800,0.95639,98863.0,98862.0,0.52239945]
[1746681704402,0.95539,98863.0,98862.0,0.52239945]
[1746681704700,0.95539,98863.0,98862.0,0.52339945]
[1746681706201,0.95539,98863.0,98862.0,0.46079945]
[1746681706400,0.95539,98863.0,98862.0,0.45979945]
[1746681707502,0.95539,98863.0,98862.0,0.45879945]
[1746681707702,0.95539,98863.0,98862.0,0.45979945]
[1746681708106,0.95539,98863.0,98862.0,0.45879945]
[1746681708291,0.95539,98863.0,98862.0,0.45979945]
[1746681708795,0.43539,98863.0,98862.0,0.45979945]
[1746681710402,0.49859,98863.0,98862.0,0.37885945]
[1746681711395,0.49859,98863.0,98862.0,0.37785945]
[1746681711594,0.49859,98863.0,98862.0,0.41421382]
[1746681712103,0.49859,98863.0,98862.0,0.61650582]
[1746681712300,0.49859,98863.0,98862.0,0.41421382]
[1746681713202,1.01859,98863.0,98862.0,0.41521382]
[1746681714305,0.7531,98863.0,98862.0,0.84750582]
[1746681714599,0.95539,98863.0,98862.0,0.71101382]
[1746681714804,1.02219,98863.0,98862.0,0.64421382]
[1746681715106,1.08779,98863.0,98862.0,0.64421382]
[1746681715597,1.08779,98863.0,98862.0,0.64321382]
[1746681715906,1.08779,98863.0,98862.0,0.56489382]
[1746681716093,1.08779,98863.0,98862.0,0.64405382]
[1746681716298,1.08779,98863.0,98862.0,0.64505382]
[1746681716895,1.08779,98863.0,98862.0,0.64305382]
[1746681717094,1.08879,98863.0,98862.0,0.64305382]
[1746681717703,1.08779,98863.0,98862.0,0.56389382]
[1746681717900,1.08879,98863.0,98862.0,0.64309382]
[1746681718303,1.58879,98863.0,98862.0,0.64409382]
[1746681719001,1.58979,98863.0,98862.0,0.64309382]
[1746681719302,1.58879,98863.0,98862.0,0.64309382]
[1746681719508,1.58979,98863.0,98862.0,0.64309382]
[1746681720209,1.59079,98863.0,98862.0,0.64309382]
[1746681721004,1.3885,98863.0,98862.0,0.84538582]
[1746681721211,1.59079,98863.0,98862.0,0.84538582]
[1746681722110,1.59079,98863.0,98862.0,0.84738582]
[1746681722504,1.58879,98863.0,98862.0,0.84738582]
[1746681722811,1.58979,98863.0,98862.0,0.84738582]
[1746681723204,1.58879,98863.0,98862.0,0.84538582]
[1746681723508,1.58879,98863.0,98862.0,0.84838582]
[1746681725214,1.58779,98863.0,98862.0,0.84738582]
[1746681727810,1.58779,98863.0,98862.0,0.64509382]
[1746681728408,1.58779,98863.0,98862.0,0.64409382]
[1746681728608,1.58779,98863.0,98862.0,0.64509382]
[1746681728916,1.58779,98863.0,98862.0,0.64409382]
[1746681729119,1.58779,98863.0,98862.0,0.64509382]
[1746681729318,1.58779,98863.0,98862.0,0.84638582]
[1746681729710,1.58779,98863.0,98862.0,0.84738582]
[1746681730118,1.58779,98863.0,98862.0,0.84638582]
[1746681730419,1.58779,98863.0,98862.0,0.64409382]
[1746681730614,1.58779,98863.0,98862.0,0.64309382]
[1746681730810,1.58779,98863.0,98862.0,0.56489382]
[1746681731016,1.58779,98863.0,98862.0,0.64389382]
[1746681732320,1.58779,98863.0,98862.0,0.64289382]
[1746681732517,1.58779,98863.0,98862.0,0.64389382]
[1746681732714,1.58779,98863.0,98862.0,0.64489382]
[1746681733018,1.58779,98863.0,98862.0,0.64389382]
[1746681733219,1.58779,98863.0,98862.0,0.64489382]
[1746681735423,1.58779,98863.0,98862.0,0.64389382]
[1746681735724,1.58779,98863.0,98862.0,0.64289382]
[1746681735920,1.58779,98863.0,98862.0,0.64389382]
[1746681736723,1.58779,98863.0,98862.0,0.84618582]
[1746681737020,1.58779,98863.0,98862.0,0.64389382]
[1746681737423,1.58779,98863.0,98862.0,0.64289382]
[1746681737622,1.58779,98863.0,98862.0,0.64389382]
[1746681738022,1.58879,98863.0,98862.0,0.64389382]
[1746681738719,1.58779,98863.0,98862.0,0.64389382]
[1746681738924,1.58779,98863.0,98862.0,0.64489382]
[1746681739126,1.58879,98863.0,98862.0,0.64589382]
[1746681739719,1.58779,98863.0,98862.0,0.64389382]
[1746681740527,1.58779,98863.0,98862.0,0.84618582]
[1746681743830,1.58779,98863.0,98862.0,0.64389382]
[1746681745529,1.58779,98863.0,98862.0,0.84618582]
[1746681745828,1.58879,98863.0,98862.0,0.84618582]
[1746681747322,1.58779,98863.0,98862.0,0.84618582]
[1746681747519,1.58879,98863.0,98862.0,0.84618582]
[1746681750031,1.58879,98863.0,98862.0,0.64389382]
[1746681751635,1.58879,98863.0,98862.0,0.84618582]
[1746681753437,1.58879,98863.0,98862.0,0.64389382]
[1746681754246,1.58879,98863.0,98862.0,0.56489382]
[1746681754543,1.58879,98863.0,98862.0,0.64389382]
[1746681758041,1.58879,98863.0,98862.0,0.60853945]
[1746681758241,1.58879,98863.0,98862.0,0.30853945]
[1746681758441,0.202292,98862.0,98861.0,0.0001]
[1746681758642,0.202292,98862.0,98861.0,0.1501]
[1746681758841,0.347492,98862.0,98861.0,0.1501]
[1746681759031,0.867492,98862.0,98861.0,0.1501]
[1746681759231,1.035492,98862.0,98861.0,0.06916]
[1746681760445,1.535492,98862.0,98861.0,0.07776631]
[1746681761348,0.2022982,98859.0,98858.0,0.07562631]
[1746681761535,0.5630982,98859.0,98858.0,0.28562631]
[1746681761939,1.0830982,98859.0,98858.0,0.28562631]
[1746681762249,1.7510982,98859.0,98858.0,0.28562631]
[1746681762547,1.7520982,98859.0,98858.0,0.28562631]
[1746681762751,1.7530982,98859.0,98858.0,0.28562631]
[1746681763943,1.7530982,98859.0,98858.0,0.29309784]
[1746681765646,1.7530982,98859.0,98858.0,0.49539804]
[1746681766045,1.5508,98859.0,98858.0,0.49539804]
[1746681766256,1.7530982,98859.0,98858.0,0.60449804]
[1746681766653,1.8203982,98859.0,98858.0,0.67069804]
[1746681766852,1.3203982,98859.0,98858.0,0.67069804]
[1746681767149,1.3193982,98859.0,98858.0,0.67169804]
[1746681768552,1.3193982,98859.0,98858.0,0.67269804]
[1746681768850,1.3203982,98859.0,98858.0,0.67269804]
[1746681769153,1.3203982,98859.0,98858.0,0.67469804]
[1746681769563,1.3203982,98859.0,98858.0,0.67369804]
[1746681769854,1.3193982,98859.0,98858.0,0.67269804]
[1746681770454,1.3193982,98859.0,98858.0,0.67369804]
[1746681771757,1.3193982,98859.0,98858.0,0.67469804]
[1746681772154,1.3193982,98859.0,98858.0,0.67269804]
[1746681772857,1.3183982,98859.0,98858.0,0.67169804]
[1746681773053,1.3193982,98859.0,98858.0,0.67369804]
[1746681773358,0.7563,98859.0,98858.0,0.67587173]
[1746681773656,0.7563,98859.0,98858.0,0.76687173]
[1746681774458,0.2363,98859.0,98858.0,0.76687173]
[1746681775054,0.2353,98859.0,98858.0,0.76587173]
[1746681775254,0.2363,98859.0,98858.0,0.76787173]
[1746681775557,0.2363,98859.0,98858.0,1.12867173]
[1746681776357,0.2363,98859.0,98858.0,1.12667173]
[1746681776559,0.2363,98859.0,98858.0,1.12767173]
[1746681777156,0.2363,98859.0,98858.0,1.12867173]
[1746681780768,0.3076,98859.0,98858.0,1.12867173]
[1746681783262,0.3076,98859.0,98858.0,1.34867173]
[1746681783466,0.2363,98859.0,98858.0,1.34867173]
[1746681784853,0.2363,98859.0,98858.0,1.43867173]
[1746681785057,0.0673,98869.0,98865.0,0.0505714]
[1746681785258,0.0673,98869.0,98868.0,0.5630798]
[1746681785460,0.0673,98869.0,98868.0,1.2230798]
[1746681786163,0.2353,98869.0,98868.0,1.2230798]
[1746681786358,0.2373,98869.0,98868.0,1.2230798]
[1746681786759,0.4395777,98869.0,98868.0,1.0208]
[1746681786958,0.4385777,98869.0,98868.0,0.52]
[1746681787265,0.4395777,98869.0,98868.0,0.53]
[1746681787667,0.5063777,98869.0,98868.0,0.53]
[1746681788263,0.5063777,98869.0,98868.0,0.7322798]
[1746681788462,0.5063777,98869.0,98868.0,0.7342798]
[1746681788861,0.5063777,98869.0,98868.0,0.7362798]
[1746681789563,0.5043777,98869.0,98868.0,0.7332798]
[1746681789758,0.5053777,98869.0,98868.0,0.7352798]
[1746681790267,0.5053777,98869.0,98868.0,0.533]
[1746681790668,0.5053777,98869.0,98868.0,0.7352798]
[1746681790969,0.3031,98869.0,98868.0,0.7352798]
[1746681791265,0.5053777,98869.0,98868.0,0.7352798]
[1746681792059,0.5053777,98869.0,98868.0,0.533]
[1746681792261,0.5053777,98869.0,98868.0,0.6116]
[1746681792559,0.5253777,98869.0,98868.0,0.533]
[1746681792763,0.2022982,98859.0,98858.0,0.11747153]
[1746681793069,0.2022982,98859.0,98858.0,0.09]
[1746681793264,0.2023002,98858.0,98857.0,0.23324939]
[1746681793567,0.2724002,98858.0,98857.0,0.4513621]
[1746681793970,0.3430002,98858.0,98857.0,0.4513621]
[1746681794161,0.5110002,98858.0,98857.0,0.5299621]
[1746681794361,0.5110002,98858.0,98857.0,0.53736555]
[1746681794659,0.5110002,98858.0,98857.0,0.39600345]
[1746681795260,1.0110002,98858.0,98857.0,0.39700345]
[1746681795468,1.0120002,98858.0,98857.0,0.39800345]
[1746681795669,1.0120002,98858.0,98857.0,0.44757228]
[1746681796070,1.0120002,98858.0,98857.0,0.44657228]
[1746681796772,1.0120002,98858.0,98857.0,0.36797228]
[1746681796967,1.0120002,98858.0,98857.0,0.44657228]
[1746681798265,1.0110002,98858.0,98857.0,0.44557228]
[1746681798468,1.0120002,98858.0,98857.0,0.44657228]
[1746681799166,1.0120002,98858.0,98857.0,0.64787458]
[1746681799373,1.0130002,98858.0,98857.0,0.64787458]
[1746681799868,0.5130002,98858.0,98857.0,0.64787458]
[1746681800171,0.5130002,98858.0,98857.0,0.64987458]
[1746681800572,0.3107,98858.0,98857.0,0.64987458]
[1746681800871,0.5130002,98858.0,98857.0,0.68697458]
[1746681801072,0.5130002,98858.0,98857.0,0.64987458]
[1746681801274,0.5120002,98858.0,98857.0,0.64987458]
[1746681801571,0.5120002,98858.0,98857.0,0.65187458]
[1746681801572,0.5130002,98858.0,98857.0,0.65187458]
[1746681801773,0.5120002,98858.0,98857.0,0.65087458]
[1746681802371,0.3097,98858.0,98857.0,0.65087458]
[1746681802574,0.3107,98858.0,98857.0,0.65187458]
[1746681803473,0.5120002,98858.0,98857.0,0.57227458]
[1746681803771,0.5120002,98858.0,98857.0,0.65087458]
[1746681804767,0.5120002,98858.0,98857.0,0.64987458]
[1746681804967,0.5120002,98858.0,98857.0,0.65087458]
[1746681805266,0.3097,98858.0,98857.0,0.65087458]
[1746681805662,0.3097,98858.0,98857.0,0.59087458]
[1746681806276,0.3087,98858.0,98857.0,0.58887458]
[1746681806476,0.5120002,98858.0,98857.0,0.59087458]
[1746681807878,0.3097,98858.0,98857.0,0.58987458]
[1746681808078,0.3097,98858.0,98857.0,0.59087458]
[1746681808374,0.3097,98858.0,98857.0,0.58887458]
[1746681808580,0.3097,98858.0,98857.0,0.59087458]
[1746681808980,0.3087,98858.0,98857.0,0.58887458]
[1746681809181,0.3097,98858.0,98857.0,0.59087458]
[1746681809481,0.3107,98858.0,98857.0,0.59187458]
[1746681810083,0.3097,98858.0,98857.0,0.58987458]
[1746681810380,0.3107,98858.0,98857.0,0.59187458]
[1746681810980,0.3097,98858.0,98857.0,0.58987458]
[1746681811181,0.3097,98858.0,98857.0,0.59087458]
[1746681811882,0.3087,98858.0,98857.0,0.58887458]
[1746681812180,0.3097,98858.0,98857.0,0.59087458]
[1746681812483,0.3087,98858.0,98857.0,0.58887458]
[1746681812685,0.3097,98858.0,98857.0,0.59087458]
[1746681816785,0.5120002,98858.0,98857.0,0.59087458]
[1746681817380,0.3097,98858.0,98857.0,0.59087458]
[1746681818886,0.5120002,98858.0,98857.0,0.38857228]
[1746681821891,0.5120002,98858.0,98857.0,0.59087458]
[1746681822701,0.5120002,98858.0,98857.0,0.38857228]
[1746681824101,0.5120002,98858.0,98857.0,0.30997228]
[1746681824400,0.5120002,98858.0,98857.0,0.38837228]
[1746681825498,0.5120002,98858.0,98857.0,0.30997228]
[1746681825699,0.5120002,98858.0,98857.0,0.59067458]
[1746681828105,0.5120002,98858.0,98857.0,0.38837228]
[1746681837793,0.5120002,98858.0,98857.0,0.59067458]
[1746681840207,0.5120002,98858.0,98857.0,0.30997228]
[1746681840407,0.5120002,98858.0,98857.0,0.38837228]
[1746681846205,0.5120002,98858.0,98857.0,0.30743228]
[1746681847012,0.5420002,98858.0,98857.0,0.30743228]
[1746681847202,0.5120002,98858.0,98857.0,0.30743228]
[1746681847404,0.5420002,98858.0,98857.0,0.30743228]
[1746681848210,0.5420002,98858.0,98857.0,0.22649228]
[1746681848408,0.5420002,98858.0,98857.0,0.24649228]
[1746681848715,0.5420002,98858.0,98857.0,0.17692345]
[1746681850109,1.0420002,98858.0,98857.0,0.17692345]
[1746681852620,1.0420002,98858.0,98857.0,0.09852345]
[1746681853212,1.0420002,98858.0,98857.0,0.01758345]
[1746681855322,0.2023084,98854.0,98853.0,0.06770075]
[1746681855509,0.2323084,98854.0,98853.0,0.35770075]
[1746681856020,0.2323084,98854.0,98853.0,0.40740162]
[1746681856213,0.5200084,98854.0,98853.0,0.40740162]
[1746681856815,0.5200084,98854.0,98853.0,0.40840162]
[1746681857220,0.5200084,98854.0,98853.0,0.32746162]
[1746681857822,0.5200084,98854.0,98853.0,0.3360488]
[1746681858023,1.0200084,98854.0,98853.0,0.3360488]
[1746681858321,1.0200084,98854.0,98853.0,0.3350488]
[1746681858619,1.3808084,98854.0,98853.0,0.3350488]
[1746681859221,1.3808084,98854.0,98853.0,0.2531088]
[1746681859516,1.3828084,98854.0,98853.0,0.2531088]
[1746681859719,1.3828084,98854.0,98853.0,0.2031088]
[1746681860325,1.3838084,98854.0,98853.0,0.2031088]
[1746681862416,1.2952084,98854.0,98853.0,0.2231088]
[1746681862616,1.2952084,98854.0,98853.0,0.4254192]
[1746681862921,1.2952084,98854.0,98853.0,0.5036592]
[1746681863217,1.2952084,98854.0,98853.0,0.3013488]
[1746681863820,1.3252084,98854.0,98853.0,0.3013488]
[1746681864524,1.3252084,98854.0,98853.0,0.5036592]
[1746681865224,1.3252084,98854.0,98853.0,0.3013488]
[1746681865520,1.3252084,98854.0,98853.0,0.3617488]
[1746681866821,1.3252084,98854.0,98853.0,0.3013488]
[1746681869224,1.3252084,98854.0,98853.0,0.2204088]
[1746681869525,1.3252084,98854.0,98853.0,0.40552805]
[1746681869724,1.3252084,98854.0,98853.0,0.38552805]
[1746681875523,0.9644084,98854.0,98853.0,0.38552805]
[1746681875731,1.3252084,98854.0,98853.0,0.38552805]
[1746681879230,1.3252084,98854.0,98853.0,0.30458805]
[1746681879729,1.2952084,98854.0,98853.0,0.35632227]
[1746681880423,1.3252084,98854.0,98853.0,0.35632227]
[1746681880927,0.9644084,98854.0,98853.0,0.35632227]
[1746681881126,1.3252084,98854.0,98853.0,0.35632227]
[1746681881728,1.2952084,98854.0,98853.0,0.35632227]
[1746681882733,1.3571084,98854.0,98853.0,0.35632227]
[1746681882927,1.3601084,98854.0,98853.0,0.35732227]
[1746681883128,1.3621084,98854.0,98853.0,0.35832227]
[1746681883526,1.3621084,98854.0,98853.0,0.36598754]
[1746681884133,1.3581084,98854.0,98853.0,0.36498754]
[1746681884433,1.3621084,98854.0,98853.0,0.31139949]
[1746681888035,1.0013084,98854.0,98853.0,0.31139949]
[1746681888235,1.3621084,98854.0,98853.0,0.31139949]
[1746681890234,1.3621084,98854.0,98853.0,0.23045949]
[1746681899137,1.3921084,98854.0,98853.0,0.23045949]
[1746681901340,1.3921084,98854.0,98853.0,0.14951949]
[1746681911262,1.3921084,98854.0,98853.0,0.06857949]
[1746681911457,1.3921084,98854.0,98853.0,0.29139949]
[1746681915170,1.0313084,98854.0,98853.0,0.29139949]
[1746681915462,1.3921084,98854.0,98853.0,0.29139949]
[1746681916568,1.3921084,98854.0,98853.0,0.23966527]
[1746681917262,1.3921084,98854.0,98853.0,0.44197567]
[1746681917661,1.3921084,98854.0,98853.0,0.23966527]
[1746681922157,1.3921084,98854.0,98853.0,0.231]
[1746681922362,1.3921084,98854.0,98853.0,0.15872527]
[1746681923567,1.3921084,98854.0,98853.0,0.23656527]
[1746681924074,1.3921084,98854.0,98853.0,0.24409707]
[1746681930980,1.3921084,98854.0,98853.0,0.31409707]
[1746681932175,1.3921084,98854.0,98853.0,0.23315707]
[1746681932876,1.3921084,98854.0,98853.0,0.16315707]
[1746681943185,1.3921084,98854.0,98853.0,0.08221707]
[1746681943386,1.3921084,98854.0,98853.0,0.14221707]
[1746681946585,1.3921084,98854.0,98853.0,0.14205707]
[1746681950590,1.3621084,98854.0,98853.0,0.21205707]
[1746681951289,1.3621084,98854.0,98853.0,0.41436747]
[1746681951490,1.3921084,98854.0,98853.0,0.21205707]
[1746681951686,0.8921084,98854.0,98853.0,0.21205707]
[1746681952692,0.8921084,98854.0,98853.0,0.41436747]
[1746681953282,0.8921084,98854.0,98853.0,0.49342747]
[1746681953478,0.8621084,98854.0,98853.0,0.23]
[1746681953684,0.8621084,98854.0,98853.0,0.30768]
[1746681953884,0.8621084,98854.0,98853.0,0.5099904]
[1746681954085,0.8921084,98854.0,98853.0,0.5099904]
[1746681955095,0.5313084,98854.0,98853.0,0.5099904]
[1746681955687,0.5313084,98854.0,98853.0,0.30768]
[1746681956689,0.5313084,98854.0,98853.0,0.31534987]
[1746681956896,0.5313084,98854.0,98853.0,0.51766027]
[1746681957099,0.5313084,98854.0,98853.0,0.31534987]
[1746681957496,0.5313084,98854.0,98853.0,0.23766987]
[1746681957684,0.5313084,98854.0,98853.0,0.31534987]
[1746681959398,0.5313084,98854.0,98853.0,0.24438987]
[1746681959597,0.5313084,98854.0,98853.0,0.23438987]
[1746681961200,0.5313084,98854.0,98853.0,0.15342987]
[1746681961791,0.5313084,98854.0,98853.0,0.08534987]
[1746681962301,0.5313084,98854.0,98853.0,0.00766987]
[1746681962704,0.2023207,98848.0,98847.0,0.202322]
[1746681962903,0.5631207,98848.0,98847.0,0.462322]
[1746681963089,0.7311207,98848.0,98847.0,0.4623227]
[1746681963602,0.8571207,98848.0,98847.0,0.5400027]
[1746681964503,0.8571207,98848.0,98847.0,0.38915676]
[1746681964699,0.8601207,98848.0,98847.0,0.39780694]
[1746681965403,0.8601207,98848.0,98847.0,0.39680694]
[1746681965607,0.8631207,98848.0,98847.0,0.39780694]
[1746681967096,0.8931207,98848.0,98847.0,0.39780694]
[1746681967404,0.0505812,98846.0,98844.0,0.07768]
[1746681967700,0.0505812,98846.0,98820.0,0.05013098]
[1746681967701,0.1877,98845.0,98820.0,0.05013098]
[1746681967907,0.2023657,98826.0,98825.0,0.61101188]
[1746681968105,0.3703657,98826.0,98825.0,0.68869188]
[1746681968797,0.4941657,98826.0,98825.0,0.68869188]
[1746681969198,0.8549657,98826.0,98825.0,0.69633219]
[1746681969395,0.8559657,98826.0,98825.0,0.74898095]
[1746681970899,0.8569657,98826.0,98825.0,0.75098095]
[1746681971704,0.8569657,98826.0,98825.0,0.74998095]
[1746681972307,0.8569657,98826.0,98825.0,0.67230095]
[1746681972606,0.8569657,98826.0,98825.0,0.74998095]
[1746681973607,0.8869657,98826.0,98825.0,0.74998095]
[1746681973810,0.8859657,98826.0,98825.0,0.74898095]
[1746681973998,0.8869657,98826.0,98825.0,0.74998095]
[1746681974198,0.8569657,98826.0,98825.0,0.74998095]
[1746681974397,0.8869657,98826.0,98825.0,0.74998095]
[1746681974601,0.8859657,98826.0,98825.0,0.74898095]
[1746681974807,0.8869657,98826.0,98825.0,0.74998095]
[1746681976509,0.8869657,98826.0,98825.0,0.95234875]
[1746681976807,0.5261657,98826.0,98825.0,0.74998095]
[1746681977000,0.5261657,98826.0,98825.0,0.95234875]
[1746681977201,0.5261657,98826.0,98825.0,0.74998095]
[1746681977509,0.5261657,98826.0,98825.0,0.74982095]
[1746681981507,0.8869657,98826.0,98825.0,0.62065219]
[1746681981711,0.8869657,98826.0,98825.0,0.33042261]
[1746681982006,0.8569657,98826.0,98825.0,0.29065219]
[1746681982204,0.8569657,98826.0,98825.0,0.41205999]
[1746681982601,0.8569657,98826.0,98825.0,0.48961999]
[1746681982802,0.8569657,98826.0,98825.0,0.47961999]
[1746681984015,0.8569657,98826.0,98825.0,0.32809967]
[1746681984216,0.8869657,98826.0,98825.0,0.32809967]
[1746681985415,0.8869657,98826.0,98825.0,0.24711967]
[1746681985606,0.8869657,98826.0,98825.0,0.16955967]
[1746681985809,0.8869657,98826.0,98825.0,0.24711967]
[1746681987409,0.8869657,98826.0,98825.0,0.16613967]
[1746681989315,0.8869657,98826.0,98825.0,0.27515967]
[1746681989517,0.8869657,98826.0,98825.0,0.26756]
[1746681990211,0.8869657,98826.0,98825.0,0.18658]
[1746681991519,0.2023698,98824.0,98823.0,0.08521745]
[1746681991814,0.2323698,98824.0,98823.0,0.08521745]
[1746681992212,0.202378,98820.0,98819.0,1.02823669]
[1746681992418,0.232378,98820.0,98819.0,1.15823669]
[1746681993111,0.525878,98820.0,98819.0,1.15823669]
[1746681993513,0.525878,98820.0,98819.0,1.10702]
[1746681993714,0.525878,98820.0,98819.0,0.13]
[1746681994016,1.025878,98820.0,98819.0,0.13]
[1746681994217,1.025878,98820.0,98819.0,0.049]
[1746681994418,1.026878,98820.0,98819.0,0.05]
[1746681995320,1.027878,98820.0,98819.0,0.05744645]
[1746681996221,0.2023862,98816.0,98815.0,0.05001748]
[1746681996524,0.5931862,98816.0,98815.0,0.18]
[1746681997114,0.8897862,98816.0,98815.0,0.18]
[1746681997411,0.8907862,98816.0,98815.0,0.23294851]
[1746681997811,0.8607862,98816.0,98815.0,0.24039268]
[1746681998222,0.8607862,98816.0,98815.0,0.15941268]
[1746681998522,0.8617862,98816.0,98815.0,0.15941268]
[1746681999422,0.8617862,98816.0,98815.0,0.07843268]
[1746682002224,0.8617862,98816.0,98815.0,0.15599268]
[1746682003623,0.8617862,98816.0,98815.0,0.14854851]
[1746682003624,0.8917862,98816.0,98815.0,0.14854851]
[1746682004121,1.3917862,98816.0,98815.0,0.14854851]
[1746682004316,1.3917862,98816.0,98815.0,0.16756851]
[1746682004723,1.3917862,98816.0,98815.0,0.1]
[1746682007323,1.3917862,98816.0,98815.0,0.019]
[1746682009127,1.3617862,98816.0,98815.0,0.019]
[1746682009831,1.3917862,98816.0,98815.0,0.019]
[1746682014823,1.4582862,98816.0,98815.0,0.019]
[1746682018322,0.2023964,98811.0,98810.0,0.02293696]
[1746682018520,0.2323964,98811.0,98810.0,0.35480435]
[1746682019130,0.4358964,98811.0,98810.0,0.53426589]
[1746682019330,0.4358964,98811.0,98810.0,0.94152589]
[1746682019532,0.4378964,98811.0,98810.0,0.94152589]
[1746682019733,0.4378964,98811.0,98810.0,0.89152589]
[1746682020235,0.4378964,98811.0,98810.0,0.81801937]
[1746682020429,0.17,98811.0,98810.0,0.81801937]
[1746682020736,0.17,98811.0,98810.0,1.29922337]
[1746682021035,0.17,98811.0,98810.0,1.67922337]
[1746682021334,0.002,98811.0,98810.0,1.37172397]
[1746682021728,0.08098,98820.0,98819.0,0.2023801]
[1746682021929,0.08098,98820.0,98819.0,1.0931801]
[1746682022131,0.24898,98820.0,98819.0,1.1943761]
[1746682022539,0.24898,98820.0,98819.0,1.5292761]
[1746682022741,0.24898,98820.0,98819.0,1.2792761]
[1746682023037,0.0646,98827.0,98826.0,0.2023657]
[1746682023233,0.3703637,98827.0,98826.0,0.69099369]
[1746682023640,0.168,98827.0,98826.0,0.77589369]
[1746682023836,0.168,98827.0,98826.0,1.07589369]
[1746682024039,0.3703637,98827.0,98826.0,1.07589369]
[1746682024236,0.3703637,98827.0,98826.0,0.99491369]
[1746682024943,0.3703637,98827.0,98826.0,0.78491369]
[1746682025246,0.3713637,98827.0,98826.0,0.78591369]
[1746682025745,0.3713637,98827.0,98826.0,0.78691369]
[1746682026044,0.3713637,98827.0,98826.0,0.97691369]
[1746682026447,0.3723637,98827.0,98826.0,0.97791369]
[1746682028039,0.3723637,98827.0,98826.0,0.98791369]
[1746682028842,0.17,98827.0,98826.0,0.98791369]
[1746682033245,0.3608,98841.0,98840.0,0.2023371]
[1746682033445,0.563135,98841.0,98840.0,0.4423371]
[1746682033954,0.3608,98841.0,98840.0,0.4423371]
[1746682034253,0.731135,98841.0,98840.0,0.5293371]
[1746682034454,0.735135,98841.0,98840.0,0.5293371]
[1746682035048,0.5328,98841.0,98840.0,0.5293371]
[1746682035248,0.5328,98841.0,98840.0,0.4483771]